Workbook

Sheet Instrucciones
B2: INVENTARIO NACIONAL DE GASES DE EFECTO INVERNADERO - AÑO BASE 2010
B3: Sector Desechos - Subcategoría de Tratamiento y eliminación de aguas residuales domésticas
B5: INSTRUCCIONES
B7: ALCANCE
B8: La subcategoría de Tratamiento y eliminación de aguas residuales domésticas, involucra a todas las emisiones de gases de efecto invernadero que se generan por la descomposición de aguas residuales domésticas en condiciones anaeróbicas. Se contabilizan además las emisiones procedentes de las excretas humanas.
B11: El Tratamiento y eliminación de aguas residuales domésticas, comprende las siguientes fuentes: - Aguas residuales domésticas. - Excretas humanas
B14: METODOLOGÍA DE CALCULO
B16: Directrices del IPCC para Inventarios Nacionales del IPCC - 1996 (GL 1996) en lo que respecta a aguas residuales
B17: Orientación del IPCC sobre las buenas prácticas y la gestión de la incertidumbre en los inventarios nacionales de Gases de Efecto Invernadero (OBP 2000)
B18: Sector: Desechos
F19: Para el cálculo de Emisiones GEI:
F24: Nivel 1: El método mas básico que es aplicado cuando se utiliza niveles de actividad disponibles y factores de emisión por defecto de las guías del IPCC.
F25: Nivel 2: Método intermedio de cálculo en términos de esfuerzo y sofisticación, en la mayoría de casos se basa en el uso de niveles de actividad disponible y factores de emisión mas detallados o específicos.
F27: Nivel 3: El método mas exigente en términos de complejidad y requerimientos de datos, usualmente implica el uso de modelos y ecuaciones complejas.
B30: ESTRUCTURA DE LA HOJA DE CALCULO
B32: Las hojas de cálculo, en este libro, están agrupadas por los siguientes colores:
B33: Color de hoja | C33: Descripción
C34: Caracterización de datos
C35: Información base de nivel de actividad
C36: Información procesada de nivel de actividad
C37: Propiedades, Factores de conversión y Factores de emisión de GEI
C38: Hojas de estimaciones de emisiones GEI por desechos
C39: Resultados GEI por desechos
B41: Los grupos de hojas se relacionan como se muestra en el diagrama:
B65: ABREVIATURAS
B67: GEI | C67: : Gases de Efecto Invernadero
B68: FE | C68: : Factor de Emisión
B69: INGEI | C69: : Inventario Nacional de Gases de Efecto Invernadero
B70: CH4 | C70: : Metano
B71: N2O | C71: : Oxido Nitroso
B72: CO2e | C72: : Dióxido de carbono equivalente

Sheet Características datos
B2: Caracterización de Datos - Sector Desechos (Residuos sólidos)
B3: Definición IPCC: se refiere a la definición -literal o abreviada- de las GL1996. En algunos casos la definición abreviada se acompaña de un comentario (columna G) con la definición literal
B4: Definición INGEI: se refiere a la definición de las GL1996, ajustada a la realidad o circunstancias del Perú. Este ajuste se identificó en el desarrollo del INGEI y mantiene el concepto general de la definición original en las GL1996
C5: No aplica o no se considera en este INGEI
B7: Categorización | F7: Fuente de emisión / captura | G7: Definición | H7: Nivel de actividad | I7: Unidad | J7: TIER/Nivel | K7: Fuente de información | L7: Uso de la información | M7: Gases de GEI generados por el nivel de actividad | N7: Comentarios | O7: Hojas relacionada
B8: 6 | F8: Desechos
C9: 6B | F9: Tratamiento de aguas residuales | G9: Definición IPCC: Metano y óxido nitroso generados por la descomposición de materia orgánica en las aguas.residuales. Definición INGEI: metano y óxido nitroso generados por la descomposición de materia orgánica en las aguas residuales industriales y domésticas .
D10: 6B2 | F10: Tratamiento y eliminación de aguas residuales domésticas | G10: Definición IPCC: Emisiones de metano que se generan en los tratamientos de aguas residuales y lodos procedentes de las viviendas y fuentes comerciales. Se consideran además las emisiones de oxido nitroso procedentes de las excretas humanas vertidas en ambientes acuáticos. Definición INGEI: Emisiones de metano generadas en los procesos de tratamiento de aguas residuales domésticas.
E11: 6B2a | F11: Aguas residuales domésticas | G11: Definición IPCC: Manejo de aguas residuales y lodo, de fuentes domésticas y comerciales (incluyendo residuos humanos), a través de la recolección y tratamiento de aguas residuales, letrinas o descarga en fuentes de agua. Definición INGEI: Emisiones de metano generadas en los procesos de tratamiento de aguas residuales domésticas, considerando los vertimientos al alcatarillado público. | H11: Población con sistema de alcantarillado | I11: número de personas en miles | J11: 1 | K11: Superintendencia Nacional de Servicios de Saneamiento (SUNASS) | L11: Sirven para determinar en su conjunto las emisiones de metano generadas por el tratamiento de las aguas residuales domésticas. | M11: CH4 | O11: InfoProc 6B2a
H12: Porcentaje de aguas residuales tratadas | I12: % | J12: 1 | K12: Superintendencia Nacional de Servicios de Saneamiento (SUNASS)
H13: Demanda Biológica de Oxígeno (DBO) | I13: Kg DBO/1000 pesonas∙año | J13: 1 | K13: Reglamento Nacional de Edificaciones – Norma OS.090: Plantas de Tratamiento de Aguas Residuales. (Debe hacerse un ajuste para llevarlo a las unidades requeridas). | O13: Prop. y Fact. de conversión
H14: Población del ámbito de la EPS | I14: número de personas en miles | J14: 1 | K14: Superintendencia Nacional de Servicios de Saneamiento (SUNASS) | L14: La población de ámbito de la EPS y el Porcentaje de cobertura de alcantarillado, son usados para estimar la Población con sistema de alcantarillado, en caso esta información no está disponible: Población con sistema de alcantarillado = Población de ámbito de la EPS x Porcentaje de cobertura de alcantarillado | O14: InfoBase 6B2a
H15: Porcentaje de cobertura de alcantarillado | I15: % | J15: 1 | K15: Superintendencia Nacional de Servicios de Saneamiento (SUNASS)
E16: 6B2b | F16: Excretas humanas | G16: Definición IPCC: Las emisiones de N2O de las excretas humanas, están directamente relacionadas al ciclo del nitrógeno en la Agricultura. Definición INGEI: se considera las emisiones indirectas de N2O por la ingesta de proteinas en la población. Estas emisiones no son consideradas en Agricultura y forman parte de las "Aguas residuales domésticas", que solo contabilizan CH4. | H16: Población nacional | I16: número de personas en miles | K16: Instituto Nacional de Estadísticas e Informática (INEI) | L16: Sirve para determinar la cantidad de nitrógeno contenida en la orina humana | M16: N2O | O16: infoBase6B2b(población)
H17: Consumo de proteínas | I17: g/persona∙día | J17: 1 | K17: Organización de las Naciones Unidas para la Agricultura y la Alimentación (FAO) | O17: InfoBase 6B2b

Sheet InfoBase 6B2a
B2: Información Básica: Feacción de aguas residuales que son tratadas
B4: DATOS DE LA INFORMACIÓN BASE
B5: Código | C5: 6B
B6: Subcodigo | C6: 6B2a
B7: Información | C7: Nivel de actividad | D7: Porcentaje a nivel nacional de las aguas tratadas
C8: Documento | D8: Las EPS y su desarrollo 2013 - Datos 2010
C9: Título | D9: Fracción de agua residual tratada
C10: Subtitulo
B11: Ubicación especifica | C11: Pagina | D11: 18 | F11: Cuadro | I11: Anexo
B12: Vínculo | C12: http://www.sunass.gob.pe/doc/eps_desarrollo_2013.pdf
C13: Visitado en mayo 2015
B14: Institución | C14: Superintendencia Nacional de Servicios de Saneamiento (SUNASS)
L18: Relación de esta hoja, con otras:
B19: Código | C19: Región | D19: Empresa Prestadora de Servicio | E19: Tratamiento de aguas residuales | F19: Población ámbito EPS | G19: Población con alcantarillado
E20: 2010
B21: 1 | C21: Amazonas | D21: EMUSAP Amazonas | E21: 0 | F21: 24481.77387 | G21: 17736.92293
B22: 2 | C22: Huánuco | D22: SEDA Huánuco S.A. | E22: 0 | F22: 223196.9134 | G22: 164483.3021
B23: 3 | C23: Ucayali | D23: EMAPACOP S.A. | E23: 0 | F23: 214009.6068 | G23: 111124.5769
B24: 4 | C24: Loreto | D24: EPS SEDALORETO S.A. | E24: 0 | F24: 459618.2281 | G24: 193960.2744
B25: 5 | C25: Lima | D25: EMAPA Cañete S.A. | E25: 0.0859 | F25: 171969.3066 | G25: 98458
B26: 6 | C26: Puno | D26: EMSA Puno S.A. | E26: 0.6555 | F26: 164096.2847 | G26: 132391
B27: 7 | C27: Amazonas | D27: EPSSMU S.R.Ltda. | E27: 0 | F27: 30223.9648 | G27: 15237.50486
B28: 8 | C28: Tumbes | D28: Aguas de Tumbes | E28: 0.2947 | F28: 188098.3074 | G28: 92724.23779
B29: 9 | C29: Cerro de Pasco | D29: EMAPA Pasco S.A. | E29: 0 | F29: 74812.77458 | G29: 57122
B30: 10 | C30: Ica | D30: EMAPISCO S.A. | E30: 1 | F30: 81196.59696 | G30: 66133
B31: 11 | C31: Cajamarca | D31: SEDACAJ S.A. | E31: 0.0741 | F31: 171858.5014 | G31: 140337
B32: 12 | C32: Tacna | D32: EPS TACNA S.A. | E32: 0.8787 | F32: 258218.8946 | G32: 243294.7192
B33: 13 | C33: Ica | D33: EMAPAVIGS S.A.C. | E33: 0.9716 | F33: 36324.6044 | G33: 27371.85483
B34: 14 | C34: Áncash | D34: SEDACHIMBOTE S.A. | E34: 0.5798 | F34: 397746.0744 | G34: 327521.5269
B35: 15 | C35: Ayacucho | D35: EPSASA | E35: 0.9972 | F35: 208663.4523 | G35: 165660.0411
B36: 16 | C36: San Martín | D36: EMAPA San Martín S.A. | E36: 0.0424 | F36: 161463.5504 | G36: 134321.8917
B37: 17 | C37: Madre de Dios | D37: EMAPAT S.R.Ltda. | E37: 0 | F37: 62696.20833 | G37: 25480.44375
B38: 18 | C38: Ica | D38: SEMAPACH S.A. | E38: 0.9985 | F38: 173969.4229 | G38: 126821.8599
B39: 19 | C39: Junín | D39: EPS Selva Central S.A. | E39: 0.3393 | F39: 113739.5595 | G39: 40725
B40: 20 | C40: San Martín | D40: EMAPA MOYOBAMBA S.R.LTDA. | E40: 0.2149 | F40: 63577.13035 | G40: 39337
B41: 21 | C41: Huancavelica | D41: EMAPA HUANCAVELICA S.A.C | E41: 0 | F41: 33128.99081 | G41: 24367
B42: 22 | C42: Moquegua | D42: EPS MOQUEGUA S.A. | E42: 0.5314 | F42: 49023.12817 | G42: 41145
B43: 23 | C43: Puno | D43: EMAPA Y S.R.L. | E43: 0 | F43: 11519.84493 | G43: 9019
B44: 24 | C44: Lima | D44: EMAPA HUARAL S.A. | E44: 0 | F44: 81964.78254 | G44: 59847.48256
B45: 25 | C45: Lima | D45: EMAPA HUACHO S.A. | E45: 0 | F45: 116186.9747 | G45: 96612.74914
B46: 26 | C46: Lima | D46: SEDAPAL S.A. | E46: 0.2074 | F46: 8966401.666 | G46: 7632603.065
B47: 27 | C47: Moquegua | D47: EPS ILO S.A. | E47: 0.9763 | F47: 65036.97309 | G47: 59660
B48: 28 | C48: La Libertad | D48: SEDALIB S.A. | E48: 0.6706 | F48: 899597.6778 | G48: 675212
B49: 29 | C49: Lambayeque | D49: EPSEL S.A. | E49: 0.8806 | F49: 836889.8062 | G49: 672727.4228
B50: 30 | C50: San Martín | D50: SEDAPAR S.A. | E50: 0.1504 | F50: 998843.0698 | G50: 763675.9554
B51: 31 | C51: Cusco | D51: SEDACUSCO S.A. | E51: 0.9294 | F51: 373545.97 | G51: 345370.3704
B52: 32 | C52: Piura | D52: EPS GRAU S.A. | E52: 0.4897 | F52: 1009161.417 | G52: 695406.6604
B53: 33 | C53: Áncash | D53: EPS CHAVIN S.A. | E53: 0 | F53: 114247.3292 | G53: 84734.94339
B54: 34 | C54: Cusco | D54: EMAQ S.R.LTDA. | E54: 0 | F54: 26311.31033 | G54: 16755.68023
B55: 35 | C55: Amazonas | D55: EMAPAB S.R.LTDA. | E55: 0 | F55: 25655.49827 | G55: 15794.03373
B56: 36 | C56: Lima | D56: SEMAPA BARRANCA S.A. | E56: 0 | F56: 72070.64635 | G56: 64483.08459
B57: 37 | C57: Ica | D57: EMAPICA S.A. | E57: 1 | F57: 198320.4563 | G57: 149663.9641
B58: 38 | C58: Cusco | D58: EMPSSAPAL S.A. | E58: 0 | F58: 52958.03311 | G58: 40074.90916
B59: 39 | C59: Junín | D59: EPS SIERRA CENTRAL S.R.L. | E59: 0 | F59: 41134.11667 | G59: 32589.11155
B60: 40 | C60: Puno | D60: EPS NOR PUNO S.A. | E60: 0.517 | F60: 22645.2163 | G60: 16139.70218
B61: 41 | C61: Puno | D61: SEDAJULIACA S.A. | E61: 0 | F61: 233466.0091 | G61: 184589.777
B62: 42 | C62: Junín | D62: EPS MANTARO S.A. | E62: 0.0384 | F62: 76702.6852 | G62: 39791.05231
B63: 43 | C63: Apurímac | D63: EMUSAP ABANCAY S.A. | E63: 0 | F63: 46099.30409 | G63: 38544.41157
B64: 44 | C64: Apurímac | D64: EMSAP CHANKA S.R.L. | E64: 0 | F64: 29549.89549 | G64: 13354.46847
B65: 45 | C65: Cajamarca | D65: EPS MARAÑON S.R.L. | E65: 0.9278 | F65: 92891.0146 | G65: 39182.96259
B66: 46 | C66: Junín | D66: SEDAM HUANCAYO S.A.C. | E66: 0 | F66: 361513.0964 | G66: 247537.594
B67: 47 | C67: Cusco | D67: EMSAPA CALCA S.R.L. | E67: 0 | F67: 11015.08585 | G67: 0
B68: 48 | C68: Puno | D68: EPS AGUAS DEL ALTIPLANO | E68: 0.2431 | F68: 18786.18736 | G68: 18258.11944
B69: 50 | C69: Junín | D69: EMSAPA YAULI S.RL.L. | E69: 0 | F69: 26446.35269 | G69: 7990.839416
B70: 51 | C70: Arequipa | D70: SEDAPAR S.R.L. (Rioja) | E70: 0 | F70: 20109.06898 | G70: 9705.124892
F71: =SUM(F21:F70) -> 18191182.76 | G71: =SUM(G21:G70) -> 14315078.64

Sheet InfoBase 6B2b(población)
B2: Información Básica: Población nacional según región
B4: DATOS DE LA INFORMACIÓN BASE
B5: Código | C5: 6A y 6B2
B6: Subcodigo
B7: Información | C7: Nivel de actividad | D7: Población según región/provincia/distrito
C8: Documento | D8: -
C9: Título | D9: Poblaciónal 2010
C10: Subtitulo
B11: Ubicación especifica | C11: Pagina | F11: Cuadro | I11: Anexo
B12: Vínculo | C12: http://proyectos.inei.gob.pe/web/poblacion/#
C13: Visitado en mayo 2015
B14: Institución | C14: Instituto Nacional de Estadísticas e Informática
C18: Población total oficial del Perú: | D18: 29461933 | H18: Relación de esta hoja, con otras:

Sheet InfoBase 6B2b
B2: Consumo diario de proteínas
B4: DATOS DE LA INFORMACIÓN BASE
B5: Código | C5: 6B
B6: Subcodigo | C6: 6B2a
B7: Información | C7: Nivel de actividad | D7: Consumo de proteína per cápita
C8: Documento | D8: Perfil de País: Indicadores de Seguridad Alimentaria
C9: Título | D9: Suministro Alimentario para el Consumo Humano
C10: Subtitulo | D10: Consumo total de proteínas
B11: Ubicación especifica | C11: Pagina | D11: 1 | F11: Cuadro | I11: Anexo
B12: Vínculo | C12: http://www.fao.org/fileadmin/templates/ess/documents/food_security_statistics/country_profiles/esp/Peru_S.pdf
C13: Visitado en mayo 2015
B14: Institución | C14: ORGANIZACION DE LAS NACIONES UNIDAS PARA LA AGRICULTURA Y LA ALIMENTACION - FAO
B17: Porcentaje de proteínas | D17: 67 | E17: g/persona·día | G17: Relación de esta hoja, con otras:

Sheet InfoProc 6B2a
B2: Información Procesada: Población nacional según región (millares)
H3: Relación de esta hoja, con otras:
B5: Código | C5: Región | D5: Empresa Prestadora de Servicio | E5: Tratamiento de aguas residuales [%] | F5: Población con alcantarillado [miles]
B7: ='InfoBase 6B2a'!B21 -> 1 | C7: ='InfoBase 6B2a'!C21 -> Amazonas | D7: ='InfoBase 6B2a'!D21 -> EMUSAP Amazonas | E7: =VLOOKUP(D7,'InfoBase 6B2a'!$D$21:$G$70,2,FALSE) -> 0 | F7: =VLOOKUP(D7,'InfoBase 6B2a'!$D$21:$G$70,4,FALSE)/1000 -> 17.73692293
B8: ='InfoBase 6B2a'!B27 -> 7 | C8: ='InfoBase 6B2a'!C27 -> Amazonas | D8: ='InfoBase 6B2a'!D27 -> EPSSMU S.R.Ltda. | E8: =VLOOKUP(D8,'InfoBase 6B2a'!$D$21:$G$70,2,FALSE) -> 0 | F8: =VLOOKUP(D8,'InfoBase 6B2a'!$D$21:$G$70,4,FALSE)/1000 -> 15.23750486
B9: ='InfoBase 6B2a'!B55 -> 35 | C9: ='InfoBase 6B2a'!C55 -> Amazonas | D9: ='InfoBase 6B2a'!D55 -> EMAPAB S.R.LTDA. | E9: =VLOOKUP(D9,'InfoBase 6B2a'!$D$21:$G$70,2,FALSE) -> 0 | F9: =VLOOKUP(D9,'InfoBase 6B2a'!$D$21:$G$70,4,FALSE)/1000 -> 15.79403373
B10: ='InfoBase 6B2a'!B34 -> 14 | C10: ='InfoBase 6B2a'!C34 -> Áncash | D10: ='InfoBase 6B2a'!D34 -> SEDACHIMBOTE S.A. | E10: =VLOOKUP(D10,'InfoBase 6B2a'!$D$21:$G$70,2,FALSE) -> 0.5798 | F10: =VLOOKUP(D10,'InfoBase 6B2a'!$D$21:$G$70,4,FALSE)/1000 -> 327.5215269
B11: ='InfoBase 6B2a'!B53 -> 33 | C11: ='InfoBase 6B2a'!C53 -> Áncash | D11: ='InfoBase 6B2a'!D53 -> EPS CHAVIN S.A. | E11: =VLOOKUP(D11,'InfoBase 6B2a'!$D$21:$G$70,2,FALSE) -> 0 | F11: =VLOOKUP(D11,'InfoBase 6B2a'!$D$21:$G$70,4,FALSE)/1000 -> 84.73494339
B12: ='InfoBase 6B2a'!B63 -> 43 | C12: ='InfoBase 6B2a'!C63 -> Apurímac | D12: ='InfoBase 6B2a'!D63 -> EMUSAP ABANCAY S.A. | E12: =VLOOKUP(D12,'InfoBase 6B2a'!$D$21:$G$70,2,FALSE) -> 0 | F12: =VLOOKUP(D12,'InfoBase 6B2a'!$D$21:$G$70,4,FALSE)/1000 -> 38.54441157
B13: ='InfoBase 6B2a'!B64 -> 44 | C13: ='InfoBase 6B2a'!C64 -> Apurímac | D13: ='InfoBase 6B2a'!D64 -> EMSAP CHANKA S.R.L. | E13: =VLOOKUP(D13,'InfoBase 6B2a'!$D$21:$G$70,2,FALSE) -> 0 | F13: =VLOOKUP(D13,'InfoBase 6B2a'!$D$21:$G$70,4,FALSE)/1000 -> 13.35446847
B14: ='InfoBase 6B2a'!B70 -> 51 | C14: ='InfoBase 6B2a'!C70 -> Arequipa | D14: ='InfoBase 6B2a'!D70 -> SEDAPAR S.R.L. (Rioja) | E14: =VLOOKUP(D14,'InfoBase 6B2a'!$D$21:$G$70,2,FALSE) -> 0 | F14: =VLOOKUP(D14,'InfoBase 6B2a'!$D$21:$G$70,4,FALSE)/1000 -> 9.705124892
B15: ='InfoBase 6B2a'!B35 -> 15 | C15: ='InfoBase 6B2a'!C35 -> Ayacucho | D15: ='InfoBase 6B2a'!D35 -> EPSASA | E15: =VLOOKUP(D15,'InfoBase 6B2a'!$D$21:$G$70,2,FALSE) -> 0.9972 | F15: =VLOOKUP(D15,'InfoBase 6B2a'!$D$21:$G$70,4,FALSE)/1000 -> 165.6600411
B16: ='InfoBase 6B2a'!B31 -> 11 | C16: ='InfoBase 6B2a'!C31 -> Cajamarca | D16: ='InfoBase 6B2a'!D31 -> SEDACAJ S.A. | E16: =VLOOKUP(D16,'InfoBase 6B2a'!$D$21:$G$70,2,FALSE) -> 0.0741 | F16: =VLOOKUP(D16,'InfoBase 6B2a'!$D$21:$G$70,4,FALSE)/1000 -> 140.337
B17: ='InfoBase 6B2a'!B65 -> 45 | C17: ='InfoBase 6B2a'!C65 -> Cajamarca | D17: ='InfoBase 6B2a'!D65 -> EPS MARAÑON S.R.L. | E17: =VLOOKUP(D17,'InfoBase 6B2a'!$D$21:$G$70,2,FALSE) -> 0.9278 | F17: =VLOOKUP(D17,'InfoBase 6B2a'!$D$21:$G$70,4,FALSE)/1000 -> 39.18296259
B18: ='InfoBase 6B2a'!B29 -> 9 | C18: ='InfoBase 6B2a'!C29 -> Cerro de Pasco | D18: ='InfoBase 6B2a'!D29 -> EMAPA Pasco S.A. | E18: =VLOOKUP(D18,'InfoBase 6B2a'!$D$21:$G$70,2,FALSE) -> 0 | F18: =VLOOKUP(D18,'InfoBase 6B2a'!$D$21:$G$70,4,FALSE)/1000 -> 57.122
B19: ='InfoBase 6B2a'!B51 -> 31 | C19: ='InfoBase 6B2a'!C51 -> Cusco | D19: ='InfoBase 6B2a'!D51 -> SEDACUSCO S.A. | E19: =VLOOKUP(D19,'InfoBase 6B2a'!$D$21:$G$70,2,FALSE) -> 0.9294 | F19: =VLOOKUP(D19,'InfoBase 6B2a'!$D$21:$G$70,4,FALSE)/1000 -> 345.3703704
B20: ='InfoBase 6B2a'!B54 -> 34 | C20: ='InfoBase 6B2a'!C54 -> Cusco | D20: ='InfoBase 6B2a'!D54 -> EMAQ S.R.LTDA. | E20: =VLOOKUP(D20,'InfoBase 6B2a'!$D$21:$G$70,2,FALSE) -> 0 | F20: =VLOOKUP(D20,'InfoBase 6B2a'!$D$21:$G$70,4,FALSE)/1000 -> 16.75568023
B21: ='InfoBase 6B2a'!B58 -> 38 | C21: ='InfoBase 6B2a'!C58 -> Cusco | D21: ='InfoBase 6B2a'!D58 -> EMPSSAPAL S.A. | E21: =VLOOKUP(D21,'InfoBase 6B2a'!$D$21:$G$70,2,FALSE) -> 0 | F21: =VLOOKUP(D21,'InfoBase 6B2a'!$D$21:$G$70,4,FALSE)/1000 -> 40.07490916
B22: ='InfoBase 6B2a'!B67 -> 47 | C22: ='InfoBase 6B2a'!C67 -> Cusco | D22: ='InfoBase 6B2a'!D67 -> EMSAPA CALCA S.R.L. | E22: =VLOOKUP(D22,'InfoBase 6B2a'!$D$21:$G$70,2,FALSE) -> 0 | F22: =VLOOKUP(D22,'InfoBase 6B2a'!$D$21:$G$70,4,FALSE)/1000 -> 0
B23: ='InfoBase 6B2a'!B41 -> 21 | C23: ='InfoBase 6B2a'!C41 -> Huancavelica | D23: ='InfoBase 6B2a'!D41 -> EMAPA HUANCAVELICA S.A.C | E23: =VLOOKUP(D23,'InfoBase 6B2a'!$D$21:$G$70,2,FALSE) -> 0 | F23: =VLOOKUP(D23,'InfoBase 6B2a'!$D$21:$G$70,4,FALSE)/1000 -> 24.367
B24: ='InfoBase 6B2a'!B22 -> 2 | C24: ='InfoBase 6B2a'!C22 -> Huánuco | D24: ='InfoBase 6B2a'!D22 -> SEDA Huánuco S.A. | E24: =VLOOKUP(D24,'InfoBase 6B2a'!$D$21:$G$70,2,FALSE) -> 0 | F24: =VLOOKUP(D24,'InfoBase 6B2a'!$D$21:$G$70,4,FALSE)/1000 -> 164.4833021
B25: ='InfoBase 6B2a'!B30 -> 10 | C25: ='InfoBase 6B2a'!C30 -> Ica | D25: ='InfoBase 6B2a'!D30 -> EMAPISCO S.A. | E25: =VLOOKUP(D25,'InfoBase 6B2a'!$D$21:$G$70,2,FALSE) -> 1 | F25: =VLOOKUP(D25,'InfoBase 6B2a'!$D$21:$G$70,4,FALSE)/1000 -> 66.133
B26: ='InfoBase 6B2a'!B33 -> 13 | C26: ='InfoBase 6B2a'!C33 -> Ica | D26: ='InfoBase 6B2a'!D33 -> EMAPAVIGS S.A.C. | E26: =VLOOKUP(D26,'InfoBase 6B2a'!$D$21:$G$70,2,FALSE) -> 0.9716 | F26: =VLOOKUP(D26,'InfoBase 6B2a'!$D$21:$G$70,4,FALSE)/1000 -> 27.37185483
B27: ='InfoBase 6B2a'!B38 -> 18 | C27: ='InfoBase 6B2a'!C38 -> Ica | D27: ='InfoBase 6B2a'!D38 -> SEMAPACH S.A. | E27: =VLOOKUP(D27,'InfoBase 6B2a'!$D$21:$G$70,2,FALSE) -> 0.9985 | F27: =VLOOKUP(D27,'InfoBase 6B2a'!$D$21:$G$70,4,FALSE)/1000 -> 126.8218599
B28: ='InfoBase 6B2a'!B57 -> 37 | C28: ='InfoBase 6B2a'!C57 -> Ica | D28: ='InfoBase 6B2a'!D57 -> EMAPICA S.A. | E28: =VLOOKUP(D28,'InfoBase 6B2a'!$D$21:$G$70,2,FALSE) -> 1 | F28: =VLOOKUP(D28,'InfoBase 6B2a'!$D$21:$G$70,4,FALSE)/1000 -> 149.6639641
B29: ='InfoBase 6B2a'!B39 -> 19 | C29: ='InfoBase 6B2a'!C39 -> Junín | D29: ='InfoBase 6B2a'!D39 -> EPS Selva Central S.A. | E29: =VLOOKUP(D29,'InfoBase 6B2a'!$D$21:$G$70,2,FALSE) -> 0.3393 | F29: =VLOOKUP(D29,'InfoBase 6B2a'!$D$21:$G$70,4,FALSE)/1000 -> 40.725
B30: ='InfoBase 6B2a'!B59 -> 39 | C30: ='InfoBase 6B2a'!C59 -> Junín | D30: ='InfoBase 6B2a'!D59 -> EPS SIERRA CENTRAL S.R.L. | E30: =VLOOKUP(D30,'InfoBase 6B2a'!$D$21:$G$70,2,FALSE) -> 0 | F30: =VLOOKUP(D30,'InfoBase 6B2a'!$D$21:$G$70,4,FALSE)/1000 -> 32.58911155
B31: ='InfoBase 6B2a'!B62 -> 42 | C31: ='InfoBase 6B2a'!C62 -> Junín | D31: ='InfoBase 6B2a'!D62 -> EPS MANTARO S.A. | E31: =VLOOKUP(D31,'InfoBase 6B2a'!$D$21:$G$70,2,FALSE) -> 0.0384 | F31: =VLOOKUP(D31,'InfoBase 6B2a'!$D$21:$G$70,4,FALSE)/1000 -> 39.79105231
B32: ='InfoBase 6B2a'!B66 -> 46 | C32: ='InfoBase 6B2a'!C66 -> Junín | D32: ='InfoBase 6B2a'!D66 -> SEDAM HUANCAYO S.A.C. | E32: =VLOOKUP(D32,'InfoBase 6B2a'!$D$21:$G$70,2,FALSE) -> 0 | F32: =VLOOKUP(D32,'InfoBase 6B2a'!$D$21:$G$70,4,FALSE)/1000 -> 247.537594
B33: ='InfoBase 6B2a'!B69 -> 50 | C33: ='InfoBase 6B2a'!C69 -> Junín | D33: ='InfoBase 6B2a'!D69 -> EMSAPA YAULI S.RL.L. | E33: =VLOOKUP(D33,'InfoBase 6B2a'!$D$21:$G$70,2,FALSE) -> 0 | F33: =VLOOKUP(D33,'InfoBase 6B2a'!$D$21:$G$70,4,FALSE)/1000 -> 7.990839416
B34: ='InfoBase 6B2a'!B48 -> 28 | C34: ='InfoBase 6B2a'!C48 -> La Libertad | D34: ='InfoBase 6B2a'!D48 -> SEDALIB S.A. | E34: =VLOOKUP(D34,'InfoBase 6B2a'!$D$21:$G$70,2,FALSE) -> 0.6706 | F34: =VLOOKUP(D34,'InfoBase 6B2a'!$D$21:$G$70,4,FALSE)/1000 -> 675.212
B35: ='InfoBase 6B2a'!B49 -> 29 | C35: ='InfoBase 6B2a'!C49 -> Lambayeque | D35: ='InfoBase 6B2a'!D49 -> EPSEL S.A. | E35: =VLOOKUP(D35,'InfoBase 6B2a'!$D$21:$G$70,2,FALSE) -> 0.8806 | F35: =VLOOKUP(D35,'InfoBase 6B2a'!$D$21:$G$70,4,FALSE)/1000 -> 672.7274228
B36: ='InfoBase 6B2a'!B25 -> 5 | C36: ='InfoBase 6B2a'!C25 -> Lima | D36: ='InfoBase 6B2a'!D25 -> EMAPA Cañete S.A. | E36: =VLOOKUP(D36,'InfoBase 6B2a'!$D$21:$G$70,2,FALSE) -> 0.0859 | F36: =VLOOKUP(D36,'InfoBase 6B2a'!$D$21:$G$70,4,FALSE)/1000 -> 98.458
B37: ='InfoBase 6B2a'!B44 -> 24 | C37: ='InfoBase 6B2a'!C44 -> Lima | D37: ='InfoBase 6B2a'!D44 -> EMAPA HUARAL S.A. | E37: =VLOOKUP(D37,'InfoBase 6B2a'!$D$21:$G$70,2,FALSE) -> 0 | F37: =VLOOKUP(D37,'InfoBase 6B2a'!$D$21:$G$70,4,FALSE)/1000 -> 59.84748256
B38: ='InfoBase 6B2a'!B45 -> 25 | C38: ='InfoBase 6B2a'!C45 -> Lima | D38: ='InfoBase 6B2a'!D45 -> EMAPA HUACHO S.A. | E38: =VLOOKUP(D38,'InfoBase 6B2a'!$D$21:$G$70,2,FALSE) -> 0 | F38: =VLOOKUP(D38,'InfoBase 6B2a'!$D$21:$G$70,4,FALSE)/1000 -> 96.61274914
B39: ='InfoBase 6B2a'!B46 -> 26 | C39: ='InfoBase 6B2a'!C46 -> Lima | D39: ='InfoBase 6B2a'!D46 -> SEDAPAL S.A. | E39: =VLOOKUP(D39,'InfoBase 6B2a'!$D$21:$G$70,2,FALSE) -> 0.2074 | F39: =VLOOKUP(D39,'InfoBase 6B2a'!$D$21:$G$70,4,FALSE)/1000 -> 7632.603065
B40: ='InfoBase 6B2a'!B56 -> 36 | C40: ='InfoBase 6B2a'!C56 -> Lima | D40: ='InfoBase 6B2a'!D56 -> SEMAPA BARRANCA S.A. | E40: =VLOOKUP(D40,'InfoBase 6B2a'!$D$21:$G$70,2,FALSE) -> 0 | F40: =VLOOKUP(D40,'InfoBase 6B2a'!$D$21:$G$70,4,FALSE)/1000 -> 64.48308459
B41: ='InfoBase 6B2a'!B24 -> 4 | C41: ='InfoBase 6B2a'!C24 -> Loreto | D41: ='InfoBase 6B2a'!D24 -> EPS SEDALORETO S.A. | E41: =VLOOKUP(D41,'InfoBase 6B2a'!$D$21:$G$70,2,FALSE) -> 0 | F41: =VLOOKUP(D41,'InfoBase 6B2a'!$D$21:$G$70,4,FALSE)/1000 -> 193.9602744
B42: ='InfoBase 6B2a'!B37 -> 17 | C42: ='InfoBase 6B2a'!C37 -> Madre de Dios | D42: ='InfoBase 6B2a'!D37 -> EMAPAT S.R.Ltda. | E42: =VLOOKUP(D42,'InfoBase 6B2a'!$D$21:$G$70,2,FALSE) -> 0 | F42: =VLOOKUP(D42,'InfoBase 6B2a'!$D$21:$G$70,4,FALSE)/1000 -> 25.48044375
B43: ='InfoBase 6B2a'!B42 -> 22 | C43: ='InfoBase 6B2a'!C42 -> Moquegua | D43: ='InfoBase 6B2a'!D42 -> EPS MOQUEGUA S.A. | E43: =VLOOKUP(D43,'InfoBase 6B2a'!$D$21:$G$70,2,FALSE) -> 0.5314 | F43: =VLOOKUP(D43,'InfoBase 6B2a'!$D$21:$G$70,4,FALSE)/1000 -> 41.145
B44: ='InfoBase 6B2a'!B47 -> 27 | C44: ='InfoBase 6B2a'!C47 -> Moquegua | D44: ='InfoBase 6B2a'!D47 -> EPS ILO S.A. | E44: =VLOOKUP(D44,'InfoBase 6B2a'!$D$21:$G$70,2,FALSE) -> 0.9763 | F44: =VLOOKUP(D44,'InfoBase 6B2a'!$D$21:$G$70,4,FALSE)/1000 -> 59.66
B45: ='InfoBase 6B2a'!B52 -> 32 | C45: ='InfoBase 6B2a'!C52 -> Piura | D45: ='InfoBase 6B2a'!D52 -> EPS GRAU S.A. | E45: =VLOOKUP(D45,'InfoBase 6B2a'!$D$21:$G$70,2,FALSE) -> 0.4897 | F45: =VLOOKUP(D45,'InfoBase 6B2a'!$D$21:$G$70,4,FALSE)/1000 -> 695.4066604
B46: ='InfoBase 6B2a'!B26 -> 6 | C46: ='InfoBase 6B2a'!C26 -> Puno | D46: ='InfoBase 6B2a'!D26 -> EMSA Puno S.A. | E46: =VLOOKUP(D46,'InfoBase 6B2a'!$D$21:$G$70,2,FALSE) -> 0.6555 | F46: =VLOOKUP(D46,'InfoBase 6B2a'!$D$21:$G$70,4,FALSE)/1000 -> 132.391
B47: ='InfoBase 6B2a'!B43 -> 23 | C47: ='InfoBase 6B2a'!C43 -> Puno | D47: ='InfoBase 6B2a'!D43 -> EMAPA Y S.R.L. | E47: =VLOOKUP(D47,'InfoBase 6B2a'!$D$21:$G$70,2,FALSE) -> 0 | F47: =VLOOKUP(D47,'InfoBase 6B2a'!$D$21:$G$70,4,FALSE)/1000 -> 9.019
B48: ='InfoBase 6B2a'!B60 -> 40 | C48: ='InfoBase 6B2a'!C60 -> Puno | D48: ='InfoBase 6B2a'!D60 -> EPS NOR PUNO S.A. | E48: =VLOOKUP(D48,'InfoBase 6B2a'!$D$21:$G$70,2,FALSE) -> 0.517 | F48: =VLOOKUP(D48,'InfoBase 6B2a'!$D$21:$G$70,4,FALSE)/1000 -> 16.13970218
B49: ='InfoBase 6B2a'!B61 -> 41 | C49: ='InfoBase 6B2a'!C61 -> Puno | D49: ='InfoBase 6B2a'!D61 -> SEDAJULIACA S.A. | E49: =VLOOKUP(D49,'InfoBase 6B2a'!$D$21:$G$70,2,FALSE) -> 0 | F49: =VLOOKUP(D49,'InfoBase 6B2a'!$D$21:$G$70,4,FALSE)/1000 -> 184.589777
B50: ='InfoBase 6B2a'!B68 -> 48 | C50: ='InfoBase 6B2a'!C68 -> Puno | D50: ='InfoBase 6B2a'!D68 -> EPS AGUAS DEL ALTIPLANO | E50: =VLOOKUP(D50,'InfoBase 6B2a'!$D$21:$G$70,2,FALSE) -> 0.2431 | F50: =VLOOKUP(D50,'InfoBase 6B2a'!$D$21:$G$70,4,FALSE)/1000 -> 18.25811944
B51: ='InfoBase 6B2a'!B36 -> 16 | C51: ='InfoBase 6B2a'!C36 -> San Martín | D51: ='InfoBase 6B2a'!D36 -> EMAPA San Martín S.A. | E51: =VLOOKUP(D51,'InfoBase 6B2a'!$D$21:$G$70,2,FALSE) -> 0.0424 | F51: =VLOOKUP(D51,'InfoBase 6B2a'!$D$21:$G$70,4,FALSE)/1000 -> 134.3218917
B52: ='InfoBase 6B2a'!B40 -> 20 | C52: ='InfoBase 6B2a'!C40 -> San Martín | D52: ='InfoBase 6B2a'!D40 -> EMAPA MOYOBAMBA S.R.LTDA. | E52: =VLOOKUP(D52,'InfoBase 6B2a'!$D$21:$G$70,2,FALSE) -> 0.2149 | F52: =VLOOKUP(D52,'InfoBase 6B2a'!$D$21:$G$70,4,FALSE)/1000 -> 39.337
B53: ='InfoBase 6B2a'!B50 -> 30 | C53: ='InfoBase 6B2a'!C50 -> San Martín | D53: ='InfoBase 6B2a'!D50 -> SEDAPAR S.A. | E53: =VLOOKUP(D53,'InfoBase 6B2a'!$D$21:$G$70,2,FALSE) -> 0.1504 | F53: =VLOOKUP(D53,'InfoBase 6B2a'!$D$21:$G$70,4,FALSE)/1000 -> 763.6759554
B54: ='InfoBase 6B2a'!B32 -> 12 | C54: ='InfoBase 6B2a'!C32 -> Tacna | D54: ='InfoBase 6B2a'!D32 -> EPS TACNA S.A. | E54: =VLOOKUP(D54,'InfoBase 6B2a'!$D$21:$G$70,2,FALSE) -> 0.8787 | F54: =VLOOKUP(D54,'InfoBase 6B2a'!$D$21:$G$70,4,FALSE)/1000 -> 243.2947192
B55: ='InfoBase 6B2a'!B28 -> 8 | C55: ='InfoBase 6B2a'!C28 -> Tumbes | D55: ='InfoBase 6B2a'!D28 -> Aguas de Tumbes | E55: =VLOOKUP(D55,'InfoBase 6B2a'!$D$21:$G$70,2,FALSE) -> 0.2947 | F55: =VLOOKUP(D55,'InfoBase 6B2a'!$D$21:$G$70,4,FALSE)/1000 -> 92.72423779
B56: ='InfoBase 6B2a'!B23 -> 3 | C56: ='InfoBase 6B2a'!C23 -> Ucayali | D56: ='InfoBase 6B2a'!D23 -> EMAPACOP S.A. | E56: =VLOOKUP(D56,'InfoBase 6B2a'!$D$21:$G$70,2,FALSE) -> 0 | F56: =VLOOKUP(D56,'InfoBase 6B2a'!$D$21:$G$70,4,FALSE)/1000 -> 111.1245769
C92: ='Prop. y Fact. de conversión'!C36*365/'Prop. y Fact. de conversión'!C17*1000 -> 18250 | D92: kg/1000 personas.año
C97: =SUM(C98:C101) -> 808436 | D97: =SUM(D98:D101) -> 259098
C98: 438834 | D98: 93349 | E98: 21.27
C99: 273868 | D99: 146592 | E99: 53.53
C100: 65654 | D100: 10989 | E100: 16.74
C101: 30080 | D101: 8168 | E101: 27.16
B114: Demanda Bioquímica de Oxígeno (DBO)
B116: DBO5
E155: =AVERAGE('InfoBase 6B2a'!E21:E70) -> 0.293894 | F155: =AVERAGE('InfoBase 6B2a'!#REF!) -> 
G157: =AVERAGE('InfoBase 6B2a'!#REF!) ->  | H157: =AVERAGE('InfoBase 6B2a'!#REF!) -> 
I181: =AVERAGE('InfoBase 6B2a'!#REF!) -> 

Sheet Prop. y Fact. de conversión
B2: Relación de metano/carbono y oxido nitroso/nitrógeno
B4: Peso atómico del carbono | C4: 12
B5: Peso atómico del hidrógeno | C5: 1
B6: Peso atómico del nitrógeno | C6: 14
B7: Peso atómico del oxígeno | C7: 16
B8: Fuente: Tabla periódica de los elementos
B10: Relación CH4/C | C10: =(C4+C5*4)/C4 -> 1.333333333
B13: Conversión de unidades
B15: Masa
B16: 1 tonelada | C16: 1000 | D16: kg
B17: 1 kilogramo | C17: 1000 | D17: g
B18: 1 tonelada | C18: =C16*C17 -> 1000000 | D18: g
B20: Prefijo | C20: Simbolo | D20: Factor
B21: deca | C21: da | D21: =10^1 -> 10
B22: hecto | C22: h | D22: =10^2 -> 100
B23: kilo | C23: k | D23: =10^3 -> 1000
B24: mega | C24: M | D24: =10^6 -> 1000000
B25: giga | C25: G | D25: =10^9 -> 1000000000
B26: tera | C26: T | D26: =10^12 -> 1000000000000
B27: Fuente: Sistema Internacional - Guide for the Use of the International System of Units (SI) http://physics.nist.gov/cuu/pdf/sp811.pdf
B30: Volumen
B31: 1 centimetro cúbico | C31: =1/1000 -> 0.001 | D31: l
B32: Fuente: http://www.metric-conversions.org/es/volumen/tabla-de-conversion-de-centimetros-cubicos-a-litros.htm
B34: Demanda Bioquímica de Oxígeno (DBO)
B36: DBO5 | C36: 50 | D36: g/hab.día
B43: Densidades de bebidas
B45: Densidad del vino | C45: =(996+997)/2 -> 996.5 | D45: g/l
B46: Densidad de cerveza | C46: 1010 | D46: g/cm3
F51: http://www.inti.gob.ar/interlaboratorios/informes/2010/alimentos/2010_informe_final_vinos.pdf
F68: http://www.atpplleal.com/Pujat/file/DENSIDAD%20Y%20PESO%20ESPECIFICO.pdf

Sheet FE 6B2
B2: Factor de conversión de metano para el sistema de manejo (FCM)
B4: FCM | C4: 0.8
B5: Fuente: GL 1996, cuadro 6-7, página 6.20
B7: Capacidad máxima de producción de metano (Bo)
B9: Bo | C9: 0.6 | D9: kg CH4/kg DBO
B10: Fuente: OBP 2000, página 5.18
B12: Fracción de nitrógeno en la proteína
B14: FracNPR | C14: 0.16 | D14: Kg N/Kg proteína
B15: Fuente: IPCC 1996, página 6.25
B17: Factor de emisión por excretas humanas
B19: EF6 | C19: 0.01 | D19: kgCH4/kgDBO
B20: Fuente: IPCC 1996, página 6.25

Sheet Emisiones GEI 6B2a
B2: Estimación de metano generado por el tratamiento de aguas residuales domésticas
B4: Sector | C4: Desechos
B5: Categoría | C5: Aguas residuales domésticas
B6: Código de categoría | C6: 6B2a
B10: A | C10: B | D10: C | E10: D | F10: E | G10: F | H10: G | I10: H | J10: I | K10: J | L10: K | M10: L | N10: M | O10: N | P10: O
B11: Región - EPS | C11: Población con alcantarillado (1,000 personas) | D11: Componente orgánico degradable (kg DBO/1000 personas/año) | E11: Fracción del componente orgánico degradable removido como lodo | F11: Total del componente orgánico del agua residual doméstica residual/comercial (kg DBO/año) | G11: Total del componente orgánico del lodo doméstico/comercial (kg DBO/año) | H11: Sistemas de manejo de aguas residuales | I11: Fracción de agua residual tratada por el sistema de manejo | J11: Factor de conversión de metano para el sistema de manejo | K11: Producto | L11: Capacidad máxima de producción de metano (kg CH4/kg DBO) | M11: Factor de emisión para aguas residuales domésticas (kg CH4/kg DBO) | N11: Emisiones de metano sin recuperación o quema (Kg CH4) | O11: Metano recuperado o quemado (Kg CH4) | P11: Emisiones netas de metano (Gg CH4)
F12: E = [B x C x (1-D)] | G12: F = (B x C x D) | K12: J = (H x I ) | M12: L = (J x K) | N12: M = (E x L) | P12: K = (M - N)/1 000 000
B13: ='InfoProc 6B2a'!C7& "- " & 'InfoBase 6B2a'!D21 -> Amazonas- EMUSAP Amazonas | C13: ='InfoProc 6B2a'!F7 -> 17.73692293 | D13: ='InfoProc 6B2a'!$C$92 -> 18250 | E13: 0 | F13: =(C13*D13*(1-E13)) -> 323698.8435 | G13: =C13*D13*E13 -> 0 | I13: ='InfoProc 6B2a'!E7 -> 0 | J13: ='FE 6B2'!C4 -> 0.8 | K13: =I13*J13 -> 0 | L13: ='FE 6B2'!C9 -> 0.6 | M13: =K13*L13 -> 0 | N13: =F13*M13 -> 0 | O13: =M13 -> 0 | P13: =(N13-O13)/1000000 -> 0
B14: ='InfoProc 6B2a'!C8& "- " & 'InfoBase 6B2a'!D22 -> Amazonas- SEDA Huánuco S.A. | C14: ='InfoProc 6B2a'!F8 -> 15.23750486 | D14: ='InfoProc 6B2a'!$C$92 -> 18250 | E14: 0 | F14: =(C14*D14*(1-E14)) -> 278084.4637 | G14: =C14*D14*E14 -> 0 | I14: ='InfoProc 6B2a'!E8 -> 0 | J14: ='FE 6B2'!C4 -> 0.8 | K14: =I14*J14 -> 0 | L14: ='FE 6B2'!C9 -> 0.6 | M14: 0 | N14: 0 | O14: =M14 -> 0 | P14: =(N14-O14)/1000000 -> 0
B15: ='InfoProc 6B2a'!C9& "- " & 'InfoBase 6B2a'!D23 -> Amazonas- EMAPACOP S.A. | C15: ='InfoProc 6B2a'!F9 -> 15.79403373 | D15: ='InfoProc 6B2a'!$C$92 -> 18250 | E15: 0 | F15: 288241.1156 | G15: 0 | I15: ='InfoProc 6B2a'!E9 -> 0 | J15: ='FE 6B2'!C4 -> 0.8 | K15: 0 | L15: ='FE 6B2'!C9 -> 0.6 | M15: 0 | N15: 0 | O15: =M15 -> 0 | P15: 0
B16: ='InfoProc 6B2a'!C10& "- " & 'InfoBase 6B2a'!D24 -> Áncash- EPS SEDALORETO S.A. | C16: ='InfoProc 6B2a'!F10 -> 327.5215269 | D16: ='InfoProc 6B2a'!$C$92 -> 18250 | E16: 0 | F16: 5977267.867 | G16: 0 | I16: ='InfoProc 6B2a'!E10 -> 0.5798 | J16: ='FE 6B2'!C4 -> 0.8 | K16: 0.46384 | L16: ='FE 6B2'!C9 -> 0.6 | M16: 0.278304 | N16: 1663497.556 | O16: =M16 -> 0.278304 | P16: 1.663497278
B17: ='InfoProc 6B2a'!C11& "- " & 'InfoBase 6B2a'!D25 -> Áncash- EMAPA Cañete S.A. | C17: ='InfoProc 6B2a'!F11 -> 84.73494339 | D17: ='InfoProc 6B2a'!$C$92 -> 18250 | E17: 0 | F17: 1546412.717 | G17: 0 | I17: ='InfoProc 6B2a'!E11 -> 0 | J17: ='FE 6B2'!C4 -> 0.8 | K17: 0 | L17: ='FE 6B2'!C9 -> 0.6 | M17: 0 | N17: 0 | O17: =M17 -> 0 | P17: 0
B18: ='InfoProc 6B2a'!C12& "- " & 'InfoBase 6B2a'!D26 -> Apurímac- EMSA Puno S.A. | C18: ='InfoProc 6B2a'!F12 -> 38.54441157 | D18: ='InfoProc 6B2a'!$C$92 -> 18250 | E18: 0 | F18: 703435.5112 | G18: 0 | I18: ='InfoProc 6B2a'!E12 -> 0 | J18: ='FE 6B2'!C4 -> 0.8 | K18: 0 | L18: ='FE 6B2'!C9 -> 0.6 | M18: 0 | N18: 0 | O18: =M18 -> 0 | P18: 0
B19: ='InfoProc 6B2a'!C13& "- " & 'InfoBase 6B2a'!D27 -> Apurímac- EPSSMU S.R.Ltda. | C19: ='InfoProc 6B2a'!F13 -> 13.35446847 | D19: ='InfoProc 6B2a'!$C$92 -> 18250 | E19: 0 | F19: 243719.0496 | G19: 0 | I19: ='InfoProc 6B2a'!E13 -> 0 | J19: ='FE 6B2'!C4 -> 0.8 | K19: 0 | L19: ='FE 6B2'!C9 -> 0.6 | M19: 0 | N19: 0 | O19: =M19 -> 0 | P19: 0
B20: ='InfoProc 6B2a'!C14& "- " & 'InfoBase 6B2a'!D28 -> Arequipa- Aguas de Tumbes | C20: ='InfoProc 6B2a'!F14 -> 9.705124892 | D20: ='InfoProc 6B2a'!$C$92 -> 18250 | E20: 0 | F20: 177118.5293 | G20: 0 | I20: ='InfoProc 6B2a'!E14 -> 0 | J20: ='FE 6B2'!C4 -> 0.8 | K20: 0 | L20: ='FE 6B2'!C9 -> 0.6 | M20: 0 | N20: 0 | O20: =M20 -> 0 | P20: 0
B21: ='InfoProc 6B2a'!C15& "- " & 'InfoBase 6B2a'!D29 -> Ayacucho- EMAPA Pasco S.A. | C21: ='InfoProc 6B2a'!F15 -> 165.6600411 | D21: ='InfoProc 6B2a'!$C$92 -> 18250 | E21: 0 | F21: 3023295.75 | G21: 0 | I21: ='InfoProc 6B2a'!E15 -> 0.9972 | J21: ='FE 6B2'!C4 -> 0.8 | K21: 0.79776 | L21: ='FE 6B2'!C9 -> 0.6 | M21: 0.478656 | N21: 1447118.65 | O21: =M21 -> 0.478656 | P21: 1.447118172
B22: ='InfoProc 6B2a'!C16& "- " & 'InfoBase 6B2a'!D30 -> Cajamarca- EMAPISCO S.A. | C22: ='InfoProc 6B2a'!F16 -> 140.337 | D22: ='InfoProc 6B2a'!$C$92 -> 18250 | E22: 0 | F22: 2561150.25 | G22: 0 | I22: ='InfoProc 6B2a'!E16 -> 0.0741 | J22: ='FE 6B2'!C4 -> 0.8 | K22: 0.05928 | L22: ='FE 6B2'!C9 -> 0.6 | M22: 0.035568 | N22: 91094.99209 | O22: =M22 -> 0.035568 | P22: 0.09109495652
B23: ='InfoProc 6B2a'!C17& "- " & 'InfoBase 6B2a'!D31 -> Cajamarca- SEDACAJ S.A. | C23: ='InfoProc 6B2a'!F17 -> 39.18296259 | D23: ='InfoProc 6B2a'!$C$92 -> 18250 | E23: 0 | F23: 715089.0672 | G23: 0 | I23: ='InfoProc 6B2a'!E17 -> 0.9278 | J23: ='FE 6B2'!C4 -> 0.8 | K23: 0.74224 | L23: ='FE 6B2'!C9 -> 0.6 | M23: 0.445344 | N23: 318460.6256 | O23: =M23 -> 0.445344 | P23: 0.3184601802
B24: ='InfoProc 6B2a'!C18& "- " & 'InfoBase 6B2a'!D32 -> Cerro de Pasco- EPS TACNA S.A. | C24: ='InfoProc 6B2a'!F18 -> 57.122 | D24: ='InfoProc 6B2a'!$C$92 -> 18250 | E24: 0 | F24: 1042476.5 | G24: 0 | I24: ='InfoProc 6B2a'!E18 -> 0 | J24: ='FE 6B2'!C4 -> 0.8 | K24: 0 | L24: ='FE 6B2'!C9 -> 0.6 | M24: 0 | N24: 0 | O24: =M24 -> 0 | P24: 0
B25: ='InfoProc 6B2a'!C19& "- " & 'InfoBase 6B2a'!D33 -> Cusco- EMAPAVIGS S.A.C. | C25: ='InfoProc 6B2a'!F19 -> 345.3703704 | D25: ='InfoProc 6B2a'!$C$92 -> 18250 | E25: 0 | F25: 6303009.26 | G25: 0 | I25: ='InfoProc 6B2a'!E19 -> 0.9294 | J25: ='FE 6B2'!C4 -> 0.8 | K25: 0.74352 | L25: ='FE 6B2'!C9 -> 0.6 | M25: 0.446112 | N25: 2811848.067 | O25: =M25 -> 0.446112 | P25: 2.811847621
B26: ='InfoProc 6B2a'!C20& "- " & 'InfoBase 6B2a'!D34 -> Cusco- SEDACHIMBOTE S.A. | C26: ='InfoProc 6B2a'!F20 -> 16.75568023 | D26: ='InfoProc 6B2a'!$C$92 -> 18250 | E26: 0 | F26: 305791.1643 | G26: 0 | I26: ='InfoProc 6B2a'!E20 -> 0 | J26: ='FE 6B2'!C4 -> 0.8 | K26: 0 | L26: ='FE 6B2'!C9 -> 0.6 | M26: 0 | N26: 0 | O26: =M26 -> 0 | P26: 0
B27: ='InfoProc 6B2a'!C21& "- " & 'InfoBase 6B2a'!D35 -> Cusco- EPSASA | C27: ='InfoProc 6B2a'!F21 -> 40.07490916 | D27: ='InfoProc 6B2a'!$C$92 -> 18250 | E27: 0 | F27: 731367.0922 | G27: 0 | I27: ='InfoProc 6B2a'!E21 -> 0 | J27: ='FE 6B2'!C4 -> 0.8 | K27: 0 | L27: ='FE 6B2'!C9 -> 0.6 | M27: 0 | N27: 0 | O27: =M27 -> 0 | P27: 0
B28: ='InfoProc 6B2a'!C22& "- " & 'InfoBase 6B2a'!D36 -> Cusco- EMAPA San Martín S.A. | C28: ='InfoProc 6B2a'!F22 -> 0 | D28: ='InfoProc 6B2a'!$C$92 -> 18250 | E28: 0 | F28: 0 | G28: 0 | I28: ='InfoProc 6B2a'!E22 -> 0 | J28: ='FE 6B2'!C4 -> 0.8 | K28: 0 | L28: ='FE 6B2'!C9 -> 0.6 | M28: 0 | N28: 0 | O28: =M28 -> 0 | P28: 0
B29: ='InfoProc 6B2a'!C23& "- " & 'InfoBase 6B2a'!D37 -> Huancavelica- EMAPAT S.R.Ltda. | C29: ='InfoProc 6B2a'!F23 -> 24.367 | D29: ='InfoProc 6B2a'!$C$92 -> 18250 | E29: 0 | F29: 444697.75 | G29: 0 | I29: ='InfoProc 6B2a'!E23 -> 0 | J29: ='FE 6B2'!C4 -> 0.8 | K29: 0 | L29: ='FE 6B2'!C9 -> 0.6 | M29: 0 | N29: 0 | O29: =M29 -> 0 | P29: 0
B30: ='InfoProc 6B2a'!C24& "- " & 'InfoBase 6B2a'!D38 -> Huánuco- SEMAPACH S.A. | C30: ='InfoProc 6B2a'!F24 -> 164.4833021 | D30: ='InfoProc 6B2a'!$C$92 -> 18250 | E30: 0 | F30: 3001820.263 | G30: 0 | I30: ='InfoProc 6B2a'!E24 -> 0 | J30: ='FE 6B2'!C4 -> 0.8 | K30: 0 | L30: ='FE 6B2'!C9 -> 0.6 | M30: 0 | N30: 0 | O30: =M30 -> 0 | P30: 0
B31: ='InfoProc 6B2a'!C25& "- " & 'InfoBase 6B2a'!D39 -> Ica- EPS Selva Central S.A. | C31: ='InfoProc 6B2a'!F25 -> 66.133 | D31: ='InfoProc 6B2a'!$C$92 -> 18250 | E31: 0 | F31: 1206927.25 | G31: 0 | I31: ='InfoProc 6B2a'!E25 -> 1 | J31: ='FE 6B2'!C4 -> 0.8 | K31: 0.8 | L31: ='FE 6B2'!C9 -> 0.6 | M31: 0.48 | N31: 579325.08 | O31: =M31 -> 0.48 | P31: 0.5793246
B32: ='InfoProc 6B2a'!C26& "- " & 'InfoBase 6B2a'!D40 -> Ica- EMAPA MOYOBAMBA S.R.LTDA. | C32: ='InfoProc 6B2a'!F26 -> 27.37185483 | D32: ='InfoProc 6B2a'!$C$92 -> 18250 | E32: 0 | F32: 499536.3506 | G32: 0 | I32: ='InfoProc 6B2a'!E26 -> 0.9716 | J32: ='FE 6B2'!C4 -> 0.8 | K32: 0.77728 | L32: ='FE 6B2'!C9 -> 0.6 | M32: 0.466368 | N32: 232967.7688 | O32: =M32 -> 0.466368 | P32: 0.2329673024
B33: ='InfoProc 6B2a'!C27& "- " & 'InfoBase 6B2a'!D41 -> Ica- EMAPA HUANCAVELICA S.A.C | C33: ='InfoProc 6B2a'!F27 -> 126.8218599 | D33: ='InfoProc 6B2a'!$C$92 -> 18250 | E33: 0 | F33: 2314498.943 | G33: 0 | I33: ='InfoProc 6B2a'!E27 -> 0.9985 | J33: ='FE 6B2'!C4 -> 0.8 | K33: 0.7988 | L33: ='FE 6B2'!C9 -> 0.6 | M33: 0.47928 | N33: 1109293.053 | O33: =M33 -> 0.47928 | P33: 1.109292574
B34: ='InfoProc 6B2a'!C28& "- " & 'InfoBase 6B2a'!D42 -> Ica- EPS MOQUEGUA S.A. | C34: ='InfoProc 6B2a'!F28 -> 149.6639641 | D34: ='InfoProc 6B2a'!$C$92 -> 18250 | E34: 0 | F34: 2731367.345 | G34: 0 | I34: ='InfoProc 6B2a'!E28 -> 1 | J34: ='FE 6B2'!C4 -> 0.8 | K34: 0.8 | L34: ='FE 6B2'!C9 -> 0.6 | M34: 0.48 | N34: 1311056.326 | O34: =M34 -> 0.48 | P34: 1.311055846
B35: ='InfoProc 6B2a'!C29& "- " & 'InfoBase 6B2a'!D43 -> Junín- EMAPA Y S.R.L. | C35: ='InfoProc 6B2a'!F29 -> 40.725 | D35: ='InfoProc 6B2a'!$C$92 -> 18250 | E35: 0 | F35: 743231.25 | G35: 0 | I35: ='InfoProc 6B2a'!E29 -> 0.3393 | J35: ='FE 6B2'!C4 -> 0.8 | K35: 0.27144 | L35: ='FE 6B2'!C9 -> 0.6 | M35: 0.162864 | N35: 121045.6143 | O35: =M35 -> 0.162864 | P35: 0.1210454514
B36: ='InfoProc 6B2a'!C30& "- " & 'InfoBase 6B2a'!D44 -> Junín- EMAPA HUARAL S.A. | C36: ='InfoProc 6B2a'!F30 -> 32.58911155 | D36: ='InfoProc 6B2a'!$C$92 -> 18250 | E36: 0 | F36: 594751.2858 | G36: 0 | I36: ='InfoProc 6B2a'!E30 -> 0 | J36: ='FE 6B2'!C4 -> 0.8 | K36: 0 | L36: ='FE 6B2'!C9 -> 0.6 | M36: 0 | N36: 0 | O36: =M36 -> 0 | P36: 0
B37: ='InfoProc 6B2a'!C31& "- " & 'InfoBase 6B2a'!D45 -> Junín- EMAPA HUACHO S.A. | C37: ='InfoProc 6B2a'!F31 -> 39.79105231 | D37: ='InfoProc 6B2a'!$C$92 -> 18250 | E37: 0 | F37: 726186.7047 | G37: 0 | I37: ='InfoProc 6B2a'!E31 -> 0.0384 | J37: ='FE 6B2'!C4 -> 0.8 | K37: 0.03072 | L37: ='FE 6B2'!C9 -> 0.6 | M37: 0.018432 | N37: 13385.07334 | O37: =M37 -> 0.018432 | P37: 0.01338505491
B38: ='InfoProc 6B2a'!C32& "- " & 'InfoBase 6B2a'!D46 -> Junín- SEDAPAL S.A. | C38: ='InfoProc 6B2a'!F32 -> 247.537594 | D38: ='InfoProc 6B2a'!$C$92 -> 18250 | E38: 0 | F38: 4517561.09 | G38: 0 | I38: ='InfoProc 6B2a'!E32 -> 0 | J38: ='FE 6B2'!C4 -> 0.8 | K38: 0 | L38: ='FE 6B2'!C9 -> 0.6 | M38: 0 | N38: 0 | O38: =M38 -> 0 | P38: 0
B39: ='InfoProc 6B2a'!C33& "- " & 'InfoBase 6B2a'!D47 -> Junín- EPS ILO S.A. | C39: ='InfoProc 6B2a'!F33 -> 7.990839416 | D39: ='InfoProc 6B2a'!$C$92 -> 18250 | E39: 0 | F39: 145832.8193 | G39: 0 | I39: ='InfoProc 6B2a'!E33 -> 0 | J39: ='FE 6B2'!C4 -> 0.8 | K39: 0 | L39: ='FE 6B2'!C9 -> 0.6 | M39: 0 | N39: 0 | O39: =M39 -> 0 | P39: 0
B40: ='InfoProc 6B2a'!C34& "- " & 'InfoBase 6B2a'!D48 -> La Libertad- SEDALIB S.A. | C40: ='InfoProc 6B2a'!F34 -> 675.212 | D40: ='InfoProc 6B2a'!$C$92 -> 18250 | E40: 0 | F40: 12322619 | G40: 0 | I40: ='InfoProc 6B2a'!E34 -> 0.6706 | J40: ='FE 6B2'!C4 -> 0.8 | K40: 0.53648 | L40: ='FE 6B2'!C9 -> 0.6 | M40: 0.321888 | N40: 3966503.185 | O40: =M40 -> 0.321888 | P40: 3.966502863
B41: ='InfoProc 6B2a'!C35& "- " & 'InfoBase 6B2a'!D49 -> Lambayeque- EPSEL S.A. | C41: ='InfoProc 6B2a'!F35 -> 672.7274228 | D41: ='InfoProc 6B2a'!$C$92 -> 18250 | E41: 0 | F41: 12277275.47 | G41: 0 | I41: ='InfoProc 6B2a'!E35 -> 0.8806 | J41: ='FE 6B2'!C4 -> 0.8 | K41: 0.70448 | L41: ='FE 6B2'!C9 -> 0.6 | M41: 0.422688 | N41: 5189457.012 | O41: =M41 -> 0.422688 | P41: 5.189456589
B42: ='InfoProc 6B2a'!C36& "- " & 'InfoBase 6B2a'!D50 -> Lima- SEDAPAR S.A. | C42: ='InfoProc 6B2a'!F36 -> 98.458 | D42: ='InfoProc 6B2a'!$C$92 -> 18250 | E42: 0 | F42: 1796858.5 | G42: 0 | I42: ='InfoProc 6B2a'!E36 -> 0.0859 | J42: ='FE 6B2'!C4 -> 0.8 | K42: 0.06872 | L42: ='FE 6B2'!C9 -> 0.6 | M42: 0.041232 | N42: 74088.06967 | O42: =M42 -> 0.041232 | P42: 0.07408802844
B43: ='InfoProc 6B2a'!C37& "- " & 'InfoBase 6B2a'!D51 -> Lima- SEDACUSCO S.A. | C43: ='InfoProc 6B2a'!F37 -> 59.84748256 | D43: ='InfoProc 6B2a'!$C$92 -> 18250 | E43: 0 | F43: 1092216.557 | G43: 0 | I43: ='InfoProc 6B2a'!E37 -> 0 | J43: ='FE 6B2'!C4 -> 0.8 | K43: 0 | L43: ='FE 6B2'!C9 -> 0.6 | M43: 0 | N43: 0 | O43: =M43 -> 0 | P43: 0
B44: ='InfoProc 6B2a'!C38& "- " & 'InfoBase 6B2a'!D52 -> Lima- EPS GRAU S.A. | C44: ='InfoProc 6B2a'!F38 -> 96.61274914 | D44: ='InfoProc 6B2a'!$C$92 -> 18250 | E44: 0 | F44: 1763182.672 | G44: 0 | I44: ='InfoProc 6B2a'!E38 -> 0 | J44: ='FE 6B2'!C4 -> 0.8 | K44: 0 | L44: ='FE 6B2'!C9 -> 0.6 | M44: 0 | N44: 0 | O44: =M44 -> 0 | P44: 0
B45: ='InfoProc 6B2a'!C39& "- " & 'InfoBase 6B2a'!D53 -> Lima- EPS CHAVIN S.A. | C45: ='InfoProc 6B2a'!F39 -> 7632.603065 | D45: ='InfoProc 6B2a'!$C$92 -> 18250 | E45: 0 | F45: 139295005.9 | G45: 0 | I45: ='InfoProc 6B2a'!E39 -> 0.2074 | J45: ='FE 6B2'!C4 -> 0.8 | K45: 0.16592 | L45: ='FE 6B2'!C9 -> 0.6 | M45: 0.099552 | N45: 13867096.43 | O45: =M45 -> 0.099552 | P45: 13.86709633
B46: ='InfoProc 6B2a'!C40& "- " & 'InfoBase 6B2a'!D54 -> Lima- EMAQ S.R.LTDA. | C46: ='InfoProc 6B2a'!F40 -> 64.48308459 | D46: ='InfoProc 6B2a'!$C$92 -> 18250 | E46: 0 | F46: 1176816.294 | G46: 0 | I46: ='InfoProc 6B2a'!E40 -> 0 | J46: ='FE 6B2'!C4 -> 0.8 | K46: 0 | L46: ='FE 6B2'!C9 -> 0.6 | M46: 0 | N46: 0 | O46: =M46 -> 0 | P46: 0
B47: ='InfoProc 6B2a'!C41& "- " & 'InfoBase 6B2a'!D55 -> Loreto- EMAPAB S.R.LTDA. | C47: ='InfoProc 6B2a'!F41 -> 193.9602744 | D47: ='InfoProc 6B2a'!$C$92 -> 18250 | E47: 0 | F47: 3539775.008 | G47: 0 | I47: ='InfoProc 6B2a'!E41 -> 0 | J47: ='FE 6B2'!C4 -> 0.8 | K47: 0 | L47: ='FE 6B2'!C9 -> 0.6 | M47: 0 | N47: 0 | O47: =M47 -> 0 | P47: 0
B48: ='InfoProc 6B2a'!C42& "- " & 'InfoBase 6B2a'!D56 -> Madre de Dios- SEMAPA BARRANCA S.A. | C48: ='InfoProc 6B2a'!F42 -> 25.48044375 | D48: ='InfoProc 6B2a'!$C$92 -> 18250 | E48: 0 | F48: 465018.0984 | G48: 0 | I48: ='InfoProc 6B2a'!E42 -> 0 | J48: ='FE 6B2'!C4 -> 0.8 | K48: 0 | L48: ='FE 6B2'!C9 -> 0.6 | M48: 0 | N48: 0 | O48: =M48 -> 0 | P48: 0
B49: ='InfoProc 6B2a'!C43& "- " & 'InfoBase 6B2a'!D57 -> Moquegua- EMAPICA S.A. | C49: ='InfoProc 6B2a'!F43 -> 41.145 | D49: ='InfoProc 6B2a'!$C$92 -> 18250 | E49: 0 | F49: 750896.25 | G49: 0 | I49: ='InfoProc 6B2a'!E43 -> 0.5314 | J49: ='FE 6B2'!C4 -> 0.8 | K49: 0.42512 | L49: ='FE 6B2'!C9 -> 0.6 | M49: 0.255072 | N49: 191532.6083 | O49: =M49 -> 0.255072 | P49: 0.1915323532
B50: ='InfoProc 6B2a'!C44& "- " & 'InfoBase 6B2a'!D58 -> Moquegua- EMPSSAPAL S.A. | C50: ='InfoProc 6B2a'!F44 -> 59.66 | D50: ='InfoProc 6B2a'!$C$92 -> 18250 | E50: 0 | F50: 1088795 | G50: 0 | I50: ='InfoProc 6B2a'!E44 -> 0.9763 | J50: ='FE 6B2'!C4 -> 0.8 | K50: 0.78104 | L50: ='FE 6B2'!C9 -> 0.6 | M50: 0.468624 | N50: 510235.4681 | O50: =M50 -> 0.468624 | P50: 0.5102349995
B51: ='InfoProc 6B2a'!C45& "- " & 'InfoBase 6B2a'!D59 -> Piura- EPS SIERRA CENTRAL S.R.L. | C51: ='InfoProc 6B2a'!F45 -> 695.4066604 | D51: ='InfoProc 6B2a'!$C$92 -> 18250 | E51: 0 | F51: 12691171.55 | G51: 0 | I51: ='InfoProc 6B2a'!E45 -> 0.4897 | J51: ='FE 6B2'!C4 -> 0.8 | K51: 0.39176 | L51: ='FE 6B2'!C9 -> 0.6 | M51: 0.235056 | N51: 2983136.02 | O51: =M51 -> 0.235056 | P51: 2.983135785
B52: ='InfoProc 6B2a'!C46& "- " & 'InfoBase 6B2a'!D60 -> Puno- EPS NOR PUNO S.A. | C52: ='InfoProc 6B2a'!F46 -> 132.391 | D52: ='InfoProc 6B2a'!$C$92 -> 18250 | E52: 0 | F52: 2416135.75 | G52: 0 | I52: ='InfoProc 6B2a'!E46 -> 0.6555 | J52: ='FE 6B2'!C4 -> 0.8 | K52: 0.5244 | L52: ='FE 6B2'!C9 -> 0.6 | M52: 0.31464 | N52: 760212.9524 | O52: =M52 -> 0.31464 | P52: 0.7602126377
B53: ='InfoProc 6B2a'!C47& "- " & 'InfoBase 6B2a'!D61 -> Puno- SEDAJULIACA S.A. | C53: ='InfoProc 6B2a'!F47 -> 9.019 | D53: ='InfoProc 6B2a'!$C$92 -> 18250 | E53: 0 | F53: 164596.75 | G53: 0 | I53: ='InfoProc 6B2a'!E47 -> 0 | J53: ='FE 6B2'!C4 -> 0.8 | K53: 0 | L53: ='FE 6B2'!C9 -> 0.6 | M53: 0 | N53: 0 | O53: =M53 -> 0 | P53: 0
B54: ='InfoProc 6B2a'!C48& "- " & 'InfoBase 6B2a'!D62 -> Puno- EPS MANTARO S.A. | C54: ='InfoProc 6B2a'!F48 -> 16.13970218 | D54: ='InfoProc 6B2a'!$C$92 -> 18250 | E54: 0 | F54: 294549.5648 | G54: 0 | I54: ='InfoProc 6B2a'!E48 -> 0.517 | J54: ='FE 6B2'!C4 -> 0.8 | K54: 0.4136 | L54: ='FE 6B2'!C9 -> 0.6 | M54: 0.24816 | N54: 73095.42 | O54: =M54 -> 0.24816 | P54: 0.07309517184
B55: ='InfoProc 6B2a'!C49& "- " & 'InfoBase 6B2a'!D63 -> Puno- EMUSAP ABANCAY S.A. | C55: ='InfoProc 6B2a'!F49 -> 184.589777 | D55: ='InfoProc 6B2a'!$C$92 -> 18250 | E55: 0 | F55: 3368763.431 | G55: 0 | I55: ='InfoProc 6B2a'!E49 -> 0 | J55: ='FE 6B2'!C4 -> 0.8 | K55: 0 | L55: ='FE 6B2'!C9 -> 0.6 | M55: 0 | N55: 0 | O55: =M55 -> 0 | P55: 0
B56: ='InfoProc 6B2a'!C50& "- " & 'InfoBase 6B2a'!D64 -> Puno- EMSAP CHANKA S.R.L. | C56: ='InfoProc 6B2a'!F50 -> 18.25811944 | D56: ='InfoProc 6B2a'!$C$92 -> 18250 | E56: 0 | F56: 333210.6798 | G56: 0 | I56: ='InfoProc 6B2a'!E50 -> 0.2431 | J56: ='FE 6B2'!C4 -> 0.8 | K56: 0.19448 | L56: ='FE 6B2'!C9 -> 0.6 | M56: 0.116688 | N56: 38881.68781 | O56: =M56 -> 0.116688 | P56: 0.03888157112
B57: ='InfoProc 6B2a'!C51& "- " & 'InfoBase 6B2a'!D65 -> San Martín- EPS MARAÑON S.R.L. | C57: ='InfoProc 6B2a'!F51 -> 134.3218917 | D57: ='InfoProc 6B2a'!$C$92 -> 18250 | E57: 0 | F57: 2451374.524 | G57: 0 | I57: ='InfoProc 6B2a'!E51 -> 0.0424 | J57: ='FE 6B2'!C4 -> 0.8 | K57: 0.03392 | L57: ='FE 6B2'!C9 -> 0.6 | M57: 0.020352 | N57: 49890.3743 | O57: =M57 -> 0.020352 | P57: 0.04989035395
B58: ='InfoProc 6B2a'!C52& "- " & 'InfoBase 6B2a'!D66 -> San Martín- SEDAM HUANCAYO S.A.C. | C58: ='InfoProc 6B2a'!F52 -> 39.337 | D58: ='InfoProc 6B2a'!$C$92 -> 18250 | E58: 0 | F58: 717900.25 | G58: 0 | I58: ='InfoProc 6B2a'!E52 -> 0.2149 | J58: ='FE 6B2'!C4 -> 0.8 | K58: 0.17192 | L58: ='FE 6B2'!C9 -> 0.6 | M58: 0.103152 | N58: 74052.84659 | O58: =M58 -> 0.103152 | P58: 0.07405274344
B59: ='InfoProc 6B2a'!C53& "- " & 'InfoBase 6B2a'!D67 -> San Martín- EMSAPA CALCA S.R.L. | C59: ='InfoProc 6B2a'!F53 -> 763.6759554 | D59: ='InfoProc 6B2a'!$C$92 -> 18250 | E59: 0 | F59: 13937086.19 | G59: 0 | I59: ='InfoProc 6B2a'!E53 -> 0.1504 | J59: ='FE 6B2'!C4 -> 0.8 | K59: 0.12032 | L59: ='FE 6B2'!C9 -> 0.6 | M59: 0.072192 | N59: 1006146.126 | O59: =M59 -> 0.072192 | P59: 1.006146054
B60: ='InfoProc 6B2a'!C54& "- " & 'InfoBase 6B2a'!D68 -> Tacna- EPS AGUAS DEL ALTIPLANO | C60: ='InfoProc 6B2a'!F54 -> 243.2947192 | D60: ='InfoProc 6B2a'!$C$92 -> 18250 | E60: 0 | F60: 4440128.626 | G60: 0 | I60: ='InfoProc 6B2a'!E54 -> 0.8787 | J60: ='FE 6B2'!C4 -> 0.8 | K60: 0.70296 | L60: ='FE 6B2'!C9 -> 0.6 | M60: 0.421776 | N60: 1872739.691 | O60: =M60 -> 0.421776 | P60: 1.872739269
B61: ='InfoProc 6B2a'!C55& "- " & 'InfoBase 6B2a'!D69 -> Tumbes- EMSAPA YAULI S.RL.L. | C61: ='InfoProc 6B2a'!F55 -> 92.72423779 | D61: ='InfoProc 6B2a'!$C$92 -> 18250 | E61: 0 | F61: 1692217.34 | G61: 0 | I61: ='InfoProc 6B2a'!E55 -> 0.2947 | J61: ='FE 6B2'!C4 -> 0.8 | K61: 0.23576 | L61: ='FE 6B2'!C9 -> 0.6 | M61: 0.141456 | N61: 239374.296 | O61: =M61 -> 0.141456 | P61: 0.2393741545
B62: ='InfoProc 6B2a'!C56& "- " & 'InfoBase 6B2a'!D70 -> Ucayali- SEDAPAR S.R.L. (Rioja) | C62: ='InfoProc 6B2a'!F56 -> 111.1245769 | D62: ='InfoProc 6B2a'!$C$92 -> 18250 | E62: 0 | F62: 2028023.529 | G62: 0 | I62: ='InfoProc 6B2a'!E56 -> 0 | J62: ='FE 6B2'!C4 -> 0.8 | K62: 0 | L62: ='FE 6B2'!C9 -> 0.6 | M62: =K62*L62 -> 0 | N62: 0 | O62: =M62 -> 0 | P62: 0
P63: =SUM(P13:P62) -> 40.59552794

Sheet Emisiones GEI 6B2b
B2: Estimación de óxido nitroso generado por excretas humanas
B4: Sector | C4: Desechos
B5: Categoría | C5: Aguas residuales domésticas
B6: Código de categoría | C6: 6B2b
C10: A | D10: B | E10: C | F10: D | G10: E | H10: F | I10: G | J10: H
C11: Consumo per-cápita de proteínas (Kg proteína/persona/año) | D11: Población (número) | E11: Fracción de Nitrógeno en la proteína (Kg N/Kg proteína) | F11: Cantidad de N en las excretas producidas (Kg N/año) | G11: Cantidad de N en la orina (Kg N/año) | H11: Cantidad neta de N en la orina producida (Kg N/año) | I11: Factor de Emisión (Kg N2O-N/Kg N en el excremento producido) | J11: Total Anual de Emisiones de N2O (Gg N2O/año)
F13: D = A x B x C | H13: F = D - E | J13: H = (F x G) x (44/28) / 1 000 000
B14: Total | C14: ='InfoBase 6B2b'!D17/'Prop. y Fact. de conversión'!C17*365 -> 24.455 | D14: ='InfoBase 6B2b(población)'!D18 -> 29461933 | E14: ='FE 6B2'!C14 -> 0.16 | F14: =C14*D14*E14 -> 115278651.4 | G14: 0 | H14: =F14-G14 -> 115278651.4 | I14: ='FE 6B2'!C19 -> 0.01 | J14: =(H14*I14)*(44/28)/1000000 -> 1.811521666

Sheet Resultados INGEI
B2: Inventario de emisiones de gases de efecto invernadero para sector Desechos - 2010
B4: Código de categorías de fuentes 1996* | F4: Categorías de fuentes y sumideros | G4: Dióxido de carbono [GgCO2] | H4: Metano [MgCH4] | I4: Óxido nitroso [MgN2O] | J4: Emisiones de GEI [GgCO2e]
B5: 6 | F5: Desechos | G5: =G6+G8 -> 0 | H5: =H6+H8 -> 40595.52794 | I5: 1811.521666 | J5: =J6+J8 -> 1414.0778
C6: 6A | F6: Disposición de residuos sólidos | G6: =SUM(G7) -> 0
D7: 6A1 | F7: Residuos sólidos
C8: 6B | F8: Tratamiento de aguas residuales | G8: =SUM(G9:G10) -> 0 | H8: =SUM(H9:H10) -> 40595.52794 | I8: =SUM(I9:I10) -> 1811.521666 | J8: =SUM(J9:J10) -> 1414.0778
D9: 6B1 | F9: Efluentes industriales
D10: 6B2 | F10: Tratamiento y eliminación de aguas residuales domésticas | G10: =SUM(G11:G12) -> 0 | H10: =SUM(H11:H12) -> 40595.52794 | I10: 1811.521666 | J10: 1414.0778
E11: 6B2a | F11: Aguas residuales domésticas | G11: 0 | H11: ='Emisiones GEI 6B2a'!P63*1000 -> 40595.52794 | I11: 0 | J11: =ROUND(G11+H11*21/1000+I11*310/1000,4) -> 852.5061
E12: 6B2b | F12: Excretas humanas | G12: 0 | H12: 0 | I12: ='Emisiones GEI 6B2b'!J14*1000 -> 1811.521666 | J12: 561.5717
B13: * Han sido creadas para el INGEI 6A1, 6B2a y 6B2b (ver hoja de caracterización)
